Cogmind - Beta 14 @@@ ROGUE MODE // 2024.09.20 @ 07:39:07 Player: Heclapar Result: Destroyed by XH-7VK(R) with Subdweller Laser Performance ------------- Evolutions (0) 0 Regions Visited (3) 600 Robots Destroyed (24) 120 Value Destroyed (516) 516 Prototype IDs (0) 0 Alien Tech Used (0) 0 Bonus (0) 0 TOTAL SCORE: 1236 Bonus ------- None Cogmind --------- Core Integrity 0/250 Matter 263/300 Energy 100/100 System Corruption 1% Temperature Cool (6) Movement Treading (160) Location -10/Subcaves Parts ------- > --- POWER (1) -------- Subdweller Power Source > --- PROPULSION (2) --- Spiked Treads Spiked Treads > --- UTILITY (2) ------ Large Storage Unit Medium Armor Plating (fused) > --- WEAPON (2) ------- Battle Rifle Subdweller Machine Gun > --- INVENTORY (15) --- Improved Ion Engine Subdweller Power Source Subdweller Monowheel Subdweller Monowheel Huge Storage Unit Medium Matter Pod (100) Scrap Shield Hacking Suite Beam Rifle Subdweller Laser Rocket Launcher Rocket Launcher Subdweller Shrapnel Launcher Axe Peak State ------------ > --- POWER ------------ Subdweller Power Source > --- PROPULSION ------- Spiked Treads Subdweller Monowheel > --- UTILITY ---------- Large Storage Unit Medium Armor Plating > --- WEAPON ----------- Field Laser Heavy Assault Rifle > --- INVENTORY -------- Light Ion Engine Improved Ion Engine Carbon-fiber Leg Huge Storage Unit Medium Matter Pod Terrain Scanner Medium Armor Plating Hacking Suite Beam Rifle Subdweller Laser Rocket Launcher Rocket Launcher Hammer Axe [Rating: 16] Favorites ----------- Power Subdweller Power Source Engine Subdweller Power Source Propulsion Light Treads Treads Light Treads Leg Aluminum Leg Wheel Subdweller Monowheel Utility Medium Armor Plating Storage Large Storage Unit Protection Medium Armor Plating Weapon Subdweller Machine Gun Energy Gun Field Laser Ballistic Gun Subdweller Machine Gun Impact Weapon Hammer Slashing Weapon Axe Build | -11 -10 -10 -10 ------- Run | Yrd Mat Min Sub Slots Evolved . | . . . . Power . | . . . . Propulsion . | . . . . Utility . | . . . . Weapon . | . . . . Parts Attached 33 | . 13 1 19 Power 7 | . 2 . 5 Engine 7 | . 2 . 5 Core . | . . . . Reactor . | . . . . Propulsion 6 | . 3 . 3 Treads 4 | . 2 . 2 Leg 1 | . 1 . . Wheel 1 | . . . 1 Hover . | . . . . Flight . | . . . . Utility 6 | . 3 . 3 Device . | . . . . Storage 2 | . 2 . . Processor . | . . . . Hackware . | . . . . Protection 4 | . 1 . 3 Artifact . | . . . . Weapon 14 | . 5 1 8 Energy Gun 3 | . 2 . 1 Energy Cannon . | . . . . Ballistic Gun 7 | . 2 . 5 Ballistic Cannon . | . . . . Launcher . | . . . . Special Weapon . | . . . . Impact Weapon 1 | . 1 . . Slashing Weapon 3 | . . 1 2 Piercing Weapon . | . . . . Special Melee Weapon . | . . . . Unidentified Prototypes . | . . . . Parts Lost 7 | . 1 . 6 Power 2 | . 1 . 1 Propulsion 2 | . . . 2 Utility 2 | . . . 2 Weapon 1 | . . . 1 Highest Loss Streak 2 | . 1 . 2 To Critical Strikes . | . . . . Average Slot Usage (%) 90 | . 97 100 88 Engine 13 | . 12 14 13 Treads 16 | . 11 28 17 Leg 3 | . 16 . . Storage 14 | . 14 14 14 Protection 13 | . 13 14 13 Energy Gun 5 | . 7 . 5 Ballistic Gun 13 | . 10 4 14 Impact Weapon 5 | . 10 14 3 Slashing Weapon 3 | . . 9 4 Peak Build Rating 16 | . 11 12 16 Average Rating 12 | . 9 11 13 On Entrance 8 | 6 6 9 12 Naked Turns . | . . . . Heaviest Build 39 | 12 36 37 39 Greatest Support 40 | 20 40 40 40 Greatest Overweight (x) 1 | . 1 . 1 Average Overweight (x) . | . . . . Largest Inventory Capacity 15 | . 15 15 15 Average Capacity 14 | . 12 15 15 Most Carried 15 | . 12 15 15 Average Carried 13 | . 10 14 14 Final Capacity 15 | 8 15 15 15 Final Carried 15 | 6 12 15 15 Class Distribution -------------------- 100% | Mutant Dominant Class ---------------- Mutant | -10/Materials Mutant | -10/Mines Mutant | -10/Subcaves Resources | -11 -10 -10 -10 ----------- Run | Yrd Mat Min Sub Matter Collected 783 | 200 141 153 289 Remotely . | . . . . Salvage Created 705 | . 247 53 405 Parts 50 | . 16 2 32 Haulers Intercepted 2 | . 2 . . Recyclers Shooed . | . . . . Parts Field Recycled . | . . . . Retrieved Matter . | . . . . Parts Self-Destructed 23 | . . . 23 Prevented . | . . . . Kills | -11 -10 -10 -10 ------- Run | Yrd Mat Min Sub Combat Hostiles Destroyed 19 | . 7 . 12 Melee 8 | . 3 . 5 Guns 11 | . 4 . 7 Classes Destroyed 8 | . 5 1 2 Worker 1 | . 1 . . Hauler 2 | . 2 . . Recycler 1 | . . 1 . Operator 1 | . 1 . . Swarmer 9 | . 6 . 3 Grunt 1 | . 1 . . Sentry 1 | . . . 1 Subdweller 8 | . . . 8 Best Kill Streak 3 | . 3 1 3 Combat Bots Only 3 | . 3 . 3 Max Kills in Single Turn 2 | . 2 1 1 Gunslinging . | . . . . Exploded . | . . . . Melee 1 | . 1 . 1 Uniques/NPCs Destroyed . | . . . . Combat | -11 -10 -10 -10 -------- Run | Yrd Mat Min Sub Hostile Shots Fired 105 | . 38 . 67 Missed 18 | . 7 . 11 Damage Taken 1620 | . 345 . 1275 Core 269 | . 40 . 229 Absorbed by Shields . | . . . . Core Remaining (%) 100 | 100 . . . Volleys Fired 67 | . 39 . 28 Largest 2 | . 2 . 2 Hottest 112 | . 112 . 93 Shots Fired 104 | . 48 . 56 Gun 104 | . 48 . 56 Cannon . | . . . . Launcher . | . . . . Special . | . . . . Kinetic 67 | . 28 . 39 Thermal 37 | . 20 . 17 Explosive . | . . . . Electromagnetic . | . . . . Robot Hit Streak 27 | . 5 . 27 Robot Miss Streak 3 | . 3 . 2 Penetration Max . | . . . . Secondary Targets . | . . . . Shots Hit Robots 98 | . 39 1 58 Core Hits 33 | . 17 . 16 Critical Kills 2 | . . . 2 Critical Parts Destroyed . | . . . . Critical Strikes 4 | . 1 . 3 Burn 2 | . 1 . 1 Destroy 2 | . . . 2 Melee Attacks 41 | . 15 2 24 Impact 16 | . 15 . 1 Slashing 25 | . . 2 23 Piercing . | . . . . Sneak Attacks 3 | . 2 1 . Combat Hostiles . | . . . . Follow-up Attacks . | . . . . Damage Inflicted 1985 | . 697 59 1229 Guns 1170 | . 381 . 789 Cannons . | . . . . Explosions . | . . . . Melee 809 | . 310 59 440 Ramming 6 | . 6 . . Kinetic 779 | . 207 . 572 Thermal 391 | . 174 . 217 Explosive . | . . . . Electromagnetic . | . . . . Impact 310 | . 310 . . Slashing 499 | . . 59 440 Piercing . | . . . . Highest Corruption 1 | . 1 1 1 Average Corruption 1 | . 1 1 1 Corruption Purged . | . . . . Corruption Blocked . | . . . . Effects 31 | . . 2 29 Message Errors 12 | . . 1 11 Matter Fused 8 | . . . 8 Heat Flow Errors 3 | . . 1 2 Energy Discharges 2 | . . . 2 Parts Fused 1 | . . . 1 Data Loss (minor) 4 | . . . 4 Data Loss (major) 1 | . . . 1 Overload Shots . | . . . . Overflow Damage 68 | . 39 29 . Projectiles . | . . . . Explosions . | . . . . Melee 68 | . 39 29 . Knockbacks . | . . . . Impact . | . . . . Kinetic . | . . . . Secondary . | . . . . Self-Inflicted Damage . | . . . . Shots . | . . . . Rammed . | . . . . Targets Rammed 2 | . 2 . . Kicked 2 | . 2 . . Crushed . | . . . . Highest Temperature 300 | . 300 132 240 Average Temperature 101 | . 114 68 66 Received Heat Transfer 174 | . 114 . 60 Siege Activations . | . . . . Robots Corrupted . | . . . . Combat Hostiles . | . . . . Parts Fried . | . . . . Impact Corruptions 2 | . 2 . . Robots Melted . | . . . . Combat Hostiles . | . . . . Parts Melted 1 | . . . 1 Heat Transferred 1073 | . 518 . 555 Parts Sabotaged . | . . . . Parts Stolen . | . . . . Parts Stripped . | . . . . Power Chain Reactions . | . . . . Alert | -11 -10 -10 -10 ------- Run | Yrd Mat Min Sub Peak Influence 185 | . 185 13 . Initial 7 | . . 7 . Average 49 | . 61 8 . Maximum Alert Level . | . . . . Low Security (%) 100 | . 100 100 . Level 1 . | . . . . Level 2 . | . . . . Level 3 . | . . . . Level 4 . | . . . . Level 5 . | . . . . High Security . | . . . . Max Security . | . . . . Squads Dispatched 2 | . 1 1 . Investigation 2 | . 1 1 . Extermination . | . . . . Reinforcement . | . . . . Assault . | . . . . Garrison . | . . . . Intercept . | . . . . Searches Triggered . | . . . . Construction Impeded . | . . . . Haulers Reinforced . | . . . . Active Scanning Responses . | . . . . Cargo Convoy Interrupts . | . . . . Stealth | -11 -10 -10 -10 --------- Run | Yrd Mat Min Sub Distress Signals . | . . . . Communications Jammed . | . . . . Distress Signals . | . . . . Times Spotted 33 | . 18 . 15 Peak Tracking Total 3 | . 3 . 3 Tactical Retreats 7 | . 7 . . Traps | -11 -10 -10 -10 ------- Run | Yrd Mat Min Sub Traps Triggered 1 | . . . 1 Indirectly . | . . . . Trap Hack Attempts . | . . . . Triggered . | . . . . Disarmed . | . . . . Reprogrammed . | . . . . Reused . | . . . . Traps Extracted . | . . . . Installed . | . . . . Triggered . | . . . . Machines | -11 -10 -10 -10 ---------- Run | Yrd Mat Min Sub Machines Disabled . | . . . . Max in Single Turn . | . . . . Machines Repaired . | . . . . Machines Dismantled . | . . . . Machines Sabotaged . | . . . . Overloaded Fab Kills . | . . . . Hacking | -11 -10 -10 -10 --------- Run | Yrd Mat Min Sub Machines Accessed 4 | . 1 1 2 Terminals 1 | . 1 . . Fabricators . | . . . . Repair Stations . | . . . . Recycling Units . | . . . . Scanalyzers . | . . . . Garrison Access . | . . . . Total Hacks 6 | . 2 1 3 Successful 4 | . . 1 3 Failed 2 | . 2 . . Catastrophic 1 | . 1 . . Database Lockouts . | . . . . Manual 2 | . 2 . . Terminals 2 | . 2 . . Fabricators . | . . . . Repair Stations . | . . . . Recycling Units . | . . . . Scanalyzers . | . . . . Garrison Access . | . . . . Terminal Hacks 4 | . . 1 3 Record 1 | . . . 1 Open Door 2 | . . 1 1 Release Object 1 | . . . 1 Fabricator Hacks . | . . . . Repair Station Hacks . | . . . . Recycling Unit Hacks . | . . . . Scanalyzer . | . . . . Garrison Access Hacks . | . . . . Unauthorized Hacks . | . . . . Terminals . | . . . . Fabricators . | . . . . Repair Stations . | . . . . Recycling Units . | . . . . Scanalyzers . | . . . . Garrison Access . | . . . . Data Cores Recovered 1 | . 1 . . Used 1 | . 1 . . Hacking Detections 1 | . 1 . . Full Trace Events 1 | . 1 . . Feedback Events 1 | . 1 . . Corruption 1 | . 1 . . Feedback Blocked . | . . . . Robot Schematics Acquired . | . . . . Robots Built . | . . . . Authchips . | . . . . Time . | . . . . Total Robot Build Rating . | . . . . Part Schematics Acquired . | . . . . Parts Built . | . . . . Authchips . | . . . . Time . | . . . . Total Part Build Rating . | . . . . Parts Repaired . | . . . . Time . | . . . . Parts Recycled . | . . . . Recycled Matter . | . . . . Retrieved Matter . | . . . . Retrieved Components . | . . . . Parts Scanalyzed . | . . . . Part Schematics Acquired . | . . . . Parts Damaged . | . . . . Bothacking | -11 -10 -10 -10 ------------ Run | Yrd Mat Min Sub Used RIF Installer . | . . . . Robots Hacked . | . . . . Non-combat . | . . . . Combat . | . . . . Robot Hacks Applied . | . . . . Relay Couplers Released . | . . . . Fabnet Peak Effective % . | . . . . Robots Rewired . | . . . . Allies Hacked . | . . . . Hacks Repelled . | . . . . Allies | -11 -10 -10 -10 -------- Run | Yrd Mat Min Sub Total Allies . | . . . . Largest Group . | . . . . Highest-Rated Group . | . . . . Highest-Rated Ally . | . . . . Total Orders . | . . . . Ally Attacks . | . . . . Total Damage . | . . . . Kills . | . . . . Allies Corrupted . | . . . . Allies Melted . | . . . . Intel | -11 -10 -10 -10 ------- Run | Yrd Mat Min Sub Robot Analysis Total . | . . . . Derelict Logs Recovered 1 | . . 1 . Drone Launches . | . . . . Drone Recoveries . | . . . . Exploration | -11 -10 -10 -10 ------------- Run | Yrd Mat Min Sub Turns Passed 4362 | . 861 266 3235 Spaces Moved 1838 | 1 408 156 1273 Core . | . . . . Treads 1621 | . 194 156 1271 Legs 215 | 1 214 . . Wheels 2 | . . . 2 Hover . | . . . . Flight . | . . . . Fastest Speed 120 | 120 120 160 120 Average Speed 208 | 120 164 160 228 Slowest Speed 260 | 120 190 160 260 Overloaded Moves . | . . . . Propulsion Burnouts . | . . . . Robots Hopped . | . . . . Cave-ins Triggered . | . . . . Exploration Rate (%) 42 | 2 61 39 66 Regions Visited 3 Branch Regions 2 Pre-discovered Areas . | . . . . Known Exits Taken 1 | . . 1 . Unknown Exits Taken 2 | 1 1 . . Scrap Searched 6 | . . 1 5 Spaces Dug 1 | . . 1 . Terrain Destroyed 1 | . . 1 . Melee 1 | . . 1 . Projectile . | . . . . AOE . | . . . . Terrain Rammed . | . . . . Walls Destroyed . | . . . . Machines Disabled . | . . . . Actions | -11 -10 -10 -10 --------- Run | Yrd Mat Min Sub Total 2192 | . 521 170 1501 Wait 170 | . 29 5 136 Move 1835 | . 407 155 1273 Hop . | . . . . Pick Up 20 | . 8 4 8 Fast Attach 11 | . 5 1 5 Attach 4 | . . . 4 Detach 2 | . . 1 1 Swap 18 | . 8 . 10 Drop 22 | . 8 2 12 Fire 67 | . 39 . 28 Melee 40 | . 15 2 23 Ram . | . . . . Kick 2 | . 2 . . Crush . | . . . . Escape Stasis . | . . . . Rewire . | . . . . Trap . | . . . . Miscellaneous 1 | . . . 1 Route ------- -11/Scrapyard -10/Materials (discovered 5 exits: [*Mat x3] / *Min x2) -10/Mines (discovered 2 exits: [*Mat] / *Sub) -10/Subcaves History --------- Turn | Location | Event 1 | -11/Scrapyard | Discovered new exit (range 0) 1 | -11/Scrapyard | Entered Materials 304 | -10/Materials | Build established: Mutant 387 | -10/Materials | Discovered new exit (range 16) 443 | -10/Materials | Discovered new exit (range 16) 566 | -10/Materials | Discovered new exit (range 11) 806 | -10/Materials | Discovered new exit (range 15) 838 | -10/Materials | Discovered new exit (range 16) 862 | -10/Materials | Entered Mines 878 | -10/Mines | Identified exit to Subcaves 895 | -10/Mines | Met a Derelict bent on vengeance 895 | -10/Mines | Received a Rocket Launcher from a helpful Derelict 923 | -10/Mines | Met a Derelict shopkeep closing up shop 1080 | -10/Mines | Discovered new exit (range 15) 1128 | -10/Mines | Entered Subcaves 1440 | -10/Subcaves | Core integrity fell below 50% 1468 | -10/Subcaves | A swath of the cavern ceiling suddenly collapsed 2583 | -10/Subcaves | Core integrity fell below 20% 3106 | -10/Subcaves | A swath of the cavern ceiling suddenly collapsed 4046 | -10/Subcaves | Released subatomizers from SUBCON Basin 4308 | -10/Subcaves | Shifting Twisted Machinery released Piercing Trap 4315 | -10/Subcaves | Shifting Twisted Machinery released Spk. Treads 4363 | -10/Subcaves | Destroyed by XH-7VK(R) with Subdweller Laser Last Messages --------------- there is a high probability that sudden introduction into previously unexposed areas could cause more extreme side effects. Take all precautions to prevent this from happening. >>Release Inventory Accessing inventory controls... Collection purity confirmed 100%... Ejecting SUBCON Basin... Delivery behind schedule, handle with care! 04046_ Released subatomizers from SUBCON Basin. 04159_ VU9,GARBZZCONMF>